bitfinex-derivatives/quotes_SOLF0:USTF0_20250613
["timestamp","ask_amount","ask_price","bid_price","bid_amount"]
[1749799543296,8.57879573,144.81,144.78,6.9032]
[1749799543486,8.62984843,144.81,144.78,6.94870479]
[1749799543689,5.94875035,144.8,144.78,6.94870479]
[1749799543888,15.53214843,144.81,144.78,6.94870479]
[1749799544090,5.9488908,144.8,144.78,6.94870479]
[1749799544290,15.53214843,144.81,144.78,6.94870479]
[1749799544494,5.9488908,144.8,144.78,6.94870479]
[1749799544695,15.53214843,144.81,144.78,0.04550479]
[1749799544896,5.94932126,144.8,144.78,0.04550479]
[1749799545201,6.9023,144.8,144.78,6.94850479]
[1749799545395,8.62984843,144.81,144.78,0.04550479]
[1749799545690,0.0510527,144.81,144.78,0.04550479]
[1749799546400,0.0510527,144.81,144.8,6.9023]
[1749799549798,0.0510527,144.81,144.8,43.8023]
[1749799551200,0.0510527,144.81,144.8,36.9]
[1749799551596,0.0510527,144.81,144.8,43.8023]
[1749799557909,6.8993,144.87,144.84,6.9004]
[1749799559106,6.94302849,144.87,144.84,6.94801998]
[1749799559607,6.8995,144.86,144.84,0.04761998]
[1749799560105,6.8998,144.86,144.84,0.04761998]
[1749799560304,6.8998,144.86,144.84,6.94771998]
[1749799561295,0.04372849,144.87,144.84,0.04761998]
[1749799561496,5.97105238,144.86,144.84,0.04761998]
[1749799561699,0.04372849,144.87,144.84,0.04761998]
[1749799561899,6.8998,144.86,144.84,0.04761998]
[1749799562505,6.8998,144.86,144.84,6.94801998]
[1749799563004,6.94302849,144.87,144.84,6.94801998]
[1749799563410,0.04372849,144.87,144.86,6.8995]
[1749799563796,2.3263,144.9,144.89,6.898]
[1749799564004,4.609,144.95,144.89,5.00090631]
[1749799564211,5.96967436,144.94,144.89,5.00090631]
[1749799564510,5.96967436,144.93,144.91,6.8967]
[1749799564708,6.8684,144.95,144.88,36.9]
[1749799564709,5.96967436,144.92,144.88,36.9]
[1749799564909,6.01462317,144.91,144.89,0.05143041]
[1749799565103,0.04577406,144.91,144.89,0.05143041]
[1749799565907,6.8978,144.9,144.89,0.05143041]
[1749799566603,12.86766736,144.9,144.89,0.05143041]
[1749799566809,5.96986736,144.9,144.89,0.05143041]
[1749799567011,0.04577406,144.91,144.89,0.05143041]
[1749799567705,0.04577406,144.91,144.89,6.94913041]
[1749799568211,0.04577406,144.91,144.89,6.94933041]
[1749799569506,6.94307406,144.91,144.89,6.94933041]
[1749799570614,0.04577406,144.91,144.9,6.8976]
[1749799570811,6.0213007,144.91,144.89,0.05143041]
[1749799571114,0.04577406,144.91,144.89,0.05143041]
[1749799571314,0.04577406,144.91,144.89,5.05233672]
[1749799572210,0.04577406,144.91,144.9,6.8976]
[1749799576016,2.2237,144.99,144.94,6.8957]
[1749799576204,5.97393173,144.98,144.94,6.8957]
[1749799576411,2.2087,144.99,144.95,5.00090631]
[1749799576910,9.1022,144.99,144.96,0.04540639]
[1749799577217,0.04407293,144.98,144.96,0.04540639]
[1749799577711,0.04407293,144.98,144.97,6.8943]
[1749799577918,0.04407293,144.98,144.96,0.04540639]
[1749799578313,6.8943,144.97,144.96,0.04540639]
[1749799578514,0.04407293,144.98,144.92,5.00090631]
[1749799578719,2.2087,144.99,144.92,41.86090631]
[1749799579310,6.8951,144.96,144.92,36.86]
[1749799579511,0.04529915,144.95,144.94,5.00090631]
[1749799579712,9.2388,145.0,144.94,5.00090631]
[1749799580007,4.4682,145.03,144.96,5.00090631]
[1749799580217,6.8927,145.01,144.98,6.8934]
[1749799580520,6.8927,145.01,144.97,36.86]
[1749799580915,0.05271897,145.0,144.99,6.8933]
[1749799581710,0.05271897,145.0,144.98,0.0531287]
[1749799582114,0.05271897,145.0,144.98,6.9466287]
[1749799582809,0.05271897,145.0,144.98,0.0531287]
[1749799583417,6.94581897,145.0,144.98,0.0531287]
[1749799583617,0.05271897,145.0,144.98,0.0531287]
[1749799584816,6.94581897,145.0,144.98,0.0531287]
[1749799585719,0.05271897,145.0,144.99,6.8933]
[1749799586022,0.05271897,145.0,144.98,0.0531287]
[1749799586428,0.05271897,145.0,144.98,6.9464287]
[1749799587725,0.05271897,145.0,144.99,6.8933]
[1749799588029,0.05271897,145.0,144.98,0.0531287]
[1749799589220,0.05271897,145.0,144.99,6.8933]
[1749799589619,0.05271897,145.0,144.98,11.93975604]
[1749799589820,0.05271897,145.0,144.98,0.0531287]
[1749799590724,0.05271897,145.0,144.99,6.8933]
[1749799591026,0.05271897,145.0,144.98,0.0531287]
[1749799591230,0.05271897,145.0,144.99,6.8933]
[1749799592927,0.05271897,145.0,144.99,11.88642734]
[1749799593129,9.16646101,145.09,144.99,181.14]
[1749799593426,2.73902298,145.09,145.04,4.98674146]
[1749799593627,2.73902298,145.09,145.07,4.98674146]
[1749799593828,2.73902298,145.09,145.07,43.40674146]
[1749799594027,2.78906349,145.09,145.08,6.8891]
[1749799594231,2.78906349,145.09,145.08,11.87584146]
[1749799594421,2.78906349,145.09,145.08,45.3091]
[1749799595428,2.78906349,145.09,145.08,38.42]
[1749799595627,2.78906349,145.09,145.07,0.05168102]
[1749799595828,2.78906349,145.09,145.07,6.8893]
[1749799596336,2.78906349,145.09,145.07,6.8892]
[1749799596537,2.78906349,145.09,145.04,38.42]
[1749799596736,2.78906349,145.09,145.05,0.04640966]
[1749799596937,11.33318287,145.09,145.05,0.04640966]
[1749799597236,11.33318287,145.09,145.03,38.4]
[1749799597237,8.54411938,145.07,145.03,38.4]
[1749799597436,8.54411938,145.07,144.75,16.95834888]
[1749799597437,8.54411938,145.05,144.98,38.4]
[1749799597834,2.1833,145.04,144.98,38.4]
[1749799598035,2.1833,145.04,145.0,0.04841719]
[1749799598036,0.04851869,145.02,145.0,0.04841719]
[1749799598436,6.94061869,145.02,145.0,0.04841719]
[1749799598737,0.04851869,145.02,145.0,0.04841719]
[1749799599948,0.04851869,145.02,145.0,8.60614607]
[1749799600131,0.04851869,145.02,145.0,0.04841719]
[1749799600635,6.94051869,145.02,145.0,0.04841719]
[1749799601245,6.8924,145.01,145.0,0.04841719]
[1749799602742,0.04851869,145.02,145.0,0.04841719]
[1749799602743,6.94081869,145.02,145.0,0.04841719]
[1749799602944,0.04851869,145.02,145.0,0.04841719]
[1749799603244,6.04512092,145.02,145.0,0.04841719]
[1749799603449,6.8925,145.01,145.0,0.04841719]
[1749799604045,6.8935,144.99,144.95,38.4]
[1749799604244,2.2277,145.0,144.95,38.4]
[1749799604448,2.2277,145.0,144.95,45.2954]
[1749799604650,8.55736847,144.99,144.95,38.4]
[1749799604948,2.2277,145.0,144.95,38.4]
[1749799605146,0.04866471,144.99,144.96,0.04517402]
[1749799605644,6.05170363,144.99,144.96,0.04517402]
[1749799607045,2.2245,144.98,144.96,0.04517402]
[1749799607751,6.8945,144.97,144.96,0.04517402]
[1749799607944,6.8945,144.97,144.92,38.4]
[1749799607945,8.55736847,144.96,144.92,38.4]
[1749799608450,6.8964,144.93,144.92,38.4]
[1749799608747,8.55736847,144.97,144.89,38.42]
[1749799608950,0.05263899,144.93,144.91,6.8969]
[1749799609141,0.05263899,144.93,144.9,0.05245722]
[1749799609347,0.05263899,144.93,144.91,6.8971]
[1749799610149,6.94903899,144.93,144.9,6.95005722]
[1749799610351,0.05263899,144.93,144.9,0.05245722]
[1749799611250,6.8971,144.92,144.9,0.05245722]
[1749799611451,0.05263899,144.93,144.9,0.05245722]
[1749799611847,6.8973,144.92,144.9,0.05245722]
[1749799612050,8.61000746,144.93,144.9,0.05245722]
[1749799612244,5.98925913,144.92,144.9,0.05245722]
[1749799612444,5.98936674,144.91,144.86,442.3794]
[1749799612649,5.99111455,144.9,144.86,442.3794]
[1749799612848,2.3793,144.92,144.83,38.42]
[1749799612849,8.55736847,144.89,144.83,38.42]
[1749799613059,5.98977847,144.88,144.83,38.42]
[1749799613256,2.3242,144.88,144.83,38.42]
[1749799613555,2.2496,144.93,144.86,8.55736847]
[1749799613743,2.2496,144.93,144.87,38.42]
[1749799613949,6.8966,144.93,144.87,38.42]
[1749799614148,47.09703803,144.96,144.87,38.42]
[1749799614349,14.54484116,144.95,144.87,38.42]
[1749799614549,14.54484116,144.95,144.9,0.04868641]
[1749799614550,0.04624498,144.92,144.9,0.04868641]
[1749799614950,6.03371767,144.92,144.9,0.04868641]
[1749799615150,0.04624498,144.92,144.9,0.04868641]
[1749799615752,6.00732351,144.92,144.9,0.04868641]
[1749799615950,0.04624498,144.92,144.9,0.04868641]
[1749799616360,6.8973,144.91,144.9,0.04868641]
[1749799619055,8.61776994,144.92,144.85,38.42]
[1749799619247,4.6141,144.91,144.85,38.42]
[1749799619754,6.8985,144.89,144.86,6.8992]
[1749799620149,0.05036032,144.89,144.87,6.8989]
[1749799620349,0.05036032,144.89,144.86,5.04556985]
[1749799620755,0.05036032,144.89,144.87,6.8987]
[1749799621059,0.05036032,144.89,144.86,5.04556985]
[1749799621358,0.05036032,144.89,144.87,6.899]
[1749799623759,0.05036032,144.89,144.88,11.89895398]
[1749799623953,42.9453,144.96,144.88,5.00045398]
[1749799624262,5.00045398,144.95,144.89,45.7776]
[1749799624461,5.00045398,144.95,144.89,38.88]
[1749799624858,5.00045398,144.95,144.91,0.05095374]
[1749799624859,0.04396282,144.93,144.91,0.05095374]
[1749799625358,6.8969,144.92,144.91,0.05095374]
[1749799625552,5.0444168,144.93,144.86,38.88]
[1749799625859,42.9453,144.96,144.86,45.7794]
[1749799625860,6.8982,144.89,144.86,45.7794]
[1749799626460,6.94871137,144.89,144.86,45.83128855]
[1749799627753,0.05051137,144.89,144.86,38.93188855]
[1749799628254,0.05051137,144.89,144.86,43.93234253]
[1749799629058,0.05051137,144.89,144.88,11.89895398]
[1749799629256,4.99542714,144.94,144.86,38.93188855]
[1749799629560,4.99542714,144.92,144.88,6.8982]
[1749799629754,4.99542714,144.92,144.86,38.88]
[1749799629948,6.8976,144.9,144.84,4.99542714]
[1749799630154,0.05014634,144.88,144.86,0.05275583]
[1749799630757,0.05014634,144.88,144.87,6.8987]
[1749799632156,0.05014634,144.88,144.86,0.05275583]
[1749799632365,5.04557348,144.88,144.86,0.05275583]
[1749799632751,6.899,144.87,144.86,0.05275583]
[1749799632951,11.89442714,144.87,144.86,0.05275583]
[1749799633262,6.899,144.87,144.86,0.05275583]
[1749799634462,6.9001,144.85,144.82,45.8011]
[1749799634760,4.99542714,144.86,144.82,38.9]
[1749799635350,6.9005,144.84,144.83,0.04692536]
[1749799636052,0.04510984,144.85,144.83,0.04692536]
[1749799636462,0.04510984,144.85,144.83,6.94762536]
[1749799636665,0.04510984,144.85,144.83,0.04692536]
[1749799637762,6.94510984,144.85,144.83,6.94752536]
[1749799637963,0.04510984,144.85,144.83,0.04692536]
[1749799638666,0.04510984,144.85,144.8,38.9]
[1749799638667,4.99542714,144.84,144.8,38.9]
[1749799638853,7.23623698,144.85,144.8,38.9]
[1749799639260,6.9012,144.83,144.8,45.802]
[1749799639866,6.9012,144.83,144.8,6.94839803]
[1749799640960,2.24080984,144.85,144.8,0.04639803]
[1749799641169,0.04510984,144.85,144.8,0.04639803]
[1749799641667,0.04510984,144.85,144.83,6.9008]
[1749799642163,0.04510984,144.85,144.8,0.04639803]
[1749799642561,6.94510984,144.85,144.8,0.04639803]
[1749799643160,6.94510984,144.85,144.83,6.9006]
[1749799643968,0.04510984,144.85,144.84,6.9004]
[1749799646655,0.04510984,144.85,144.83,45.85258897]
[1749799648963,0.04510984,144.85,144.84,6.9004]
[1749799650272,0.04510984,144.85,144.83,45.85248897]
[1749799651068,0.04510984,144.85,144.84,6.9004]
[1749799651473,0.04510984,144.85,144.83,38.95178897]
[1749799651681,0.04510984,144.85,144.83,45.85238897]
[1749799652172,0.04510984,144.85,144.83,38.95178897]
[1749799652879,0.04510984,144.85,144.83,45.85238897]
[1749799654376,0.04510984,144.85,144.84,6.9004]
[1749799657065,0.04510984,144.85,144.84,11.90405933]
[1749799661577,0.04510984,144.85,144.83,38.95178897]
[1749799662281,0.04510984,144.85,144.84,6.9004]
[1749799663482,0.04510984,144.85,144.84,11.90121135]
[1749799664278,0.04510984,144.85,144.84,6.9004]
[1749799665278,0.04510984,144.85,144.83,45.85248897]
[1749799665481,0.04510984,144.85,144.83,38.95178897]
[1749799666485,0.04510984,144.85,144.83,45.85238897]
[1749799668378,6.94510984,144.85,144.83,45.85238897]
[1749799668586,0.04510984,144.85,144.84,6.9004]
[1749799670188,6.94500984,144.85,144.83,45.85258897]
[1749799670688,0.04510984,144.85,144.84,6.9004]
[1749799670886,2.3549,144.9,144.84,5.00081135]
[1749799671086,5.77530095,144.89,144.84,5.00081135]
[1749799671390,6.8984,144.89,144.84,5.00081135]
[1749799671689,7.35571135,144.9,144.83,38.95178897]
[1749799671893,6.8993,144.87,144.84,6.9]
[1749799672093,5.0502887,144.88,144.83,38.95178897]
[1749799672286,5.77681005,144.87,144.83,38.95178897]
[1749799672486,12.67651005,144.86,144.83,45.85248897]
[1749799672691,5.00081135,144.86,144.83,0.05178897]
[1749799672888,5.77725696,144.85,144.83,0.05178897]
[1749799673084,5.00081135,144.86,144.83,0.05178897]
[1749799673287,6.9004,144.84,144.83,0.05178897]
[1749799673489,12.67763044,144.84,144.83,0.05178897]
[1749799680595,6.9019,144.81,144.8,38.6]
[1749799680988,5.0038309,144.84,144.8,38.6]
[1749799681189,5.0038309,144.82,144.77,38.62]
[1749799681390,10.80512988,144.81,144.77,38.62]
[1749799681587,5.85340964,144.8,144.78,0.04691057]
[1749799681794,6.9028,144.79,144.78,0.04691057]
[1749799683098,6.9039,144.77,144.74,38.62]
[1749799683302,5.0038309,144.81,144.74,38.62]
[1749799683503,5.79494155,144.8,144.74,38.62]
[1749799683798,5.0038309,144.81,144.75,5.0038309]
[1749799684005,5.79473513,144.8,144.75,5.0038309]
[1749799684195,6.9033,144.78,144.76,6.94889841]
[1749799684997,6.95562276,144.79,144.77,6.9035]
[1749799685805,0.05282276,144.79,144.78,6.9033]
[1749799686302,0.05282276,144.79,144.78,44.6233]
[1749799689003,0.05282276,144.79,144.78,37.72]
[1749799690404,0.05282276,144.79,144.78,44.6233]
[1749799694709,6.9007,144.84,144.78,42.72232872]
[1749799695007,7.24602872,144.86,144.78,37.72]
[1749799695315,5.77605011,144.85,144.78,42.72232872]
[1749799695604,6.9022,144.81,144.8,0.0444526]
[1749799696615,5.00232872,144.82,144.75,37.72]
[1749799696814,5.00232872,144.8,144.75,37.72]
[1749799697007,2.1926,144.82,144.76,5.00232872]
[1749799697209,6.9022,144.81,144.78,6.903]
[1749799697712,6.94904266,144.81,144.78,6.95087884]
[1749799698112,6.9024,144.8,144.78,6.95087884]
[1749799699212,0.04684266,144.81,144.79,6.9028]
[1749799700307,0.04684266,144.81,144.78,6.95117884]
[1749799701314,0.04684266,144.81,144.78,0.04787884]
[1749799701512,5.00232872,144.8,144.78,0.04787884]
[1749799701920,6.9029,144.79,144.78,0.04787884]
[1749799702922,0.04684266,144.81,144.78,0.04787884]
[1749799703218,5.81479762,144.81,144.78,0.04787884]
[1749799703525,6.9029,144.79,144.78,0.04787884]
[1749799704018,0.04684266,144.81,144.78,0.04787884]
[1749799704221,11.44760773,144.89,144.8,5.00232872]
[1749799704411,5.76783787,144.88,144.8,5.00232872]
[1749799704615,6.8998,144.86,144.83,6.9009]
[1749799705222,6.94384338,144.86,144.83,6.95100798]
[1749799705724,0.04404338,144.86,144.83,0.05010798]
[1749799705922,5.81659483,144.86,144.83,0.05010798]
[1749799706127,0.04404338,144.86,144.83,0.05010798]
[1749799706424,0.04404338,144.86,144.83,37.77010798]
[1749799706824,0.04404338,144.86,144.84,6.9001]
[1749799708319,0.04404338,144.86,144.83,37.77010798]
[1749799708915,0.04404338,144.86,144.85,6.9]
[1749799709322,0.04404338,144.86,144.83,37.77010798]
[1749799709816,0.04404338,144.86,144.84,6.9001]
[1749799710327,0.04404338,144.86,144.85,6.9]
[1749799713131,6.8973,144.91,144.89,6.8981]
[1749799713419,42.302,144.93,144.89,6.8981]
[1749799713420,4.582,144.93,144.89,6.8981]
[1749799713625,6.8968,144.92,144.89,6.8981]
[1749799714230,6.94510508,144.92,144.9,6.8976]
[1749799714417,0.04830508,144.92,144.9,6.8976]
[1749799714920,0.04830508,144.92,144.89,6.94976771]
[1749799715120,0.04830508,144.92,144.89,0.05186771]
[1749799715620,0.04830508,144.92,144.89,6.94966771]
[1749799715621,6.94540508,144.92,144.89,6.94966771]
[1749799715826,0.04830508,144.92,144.89,0.05186771]
[1749799716023,5.87954154,144.92,144.89,0.05186771]
[1749799716223,6.8976,144.9,144.89,0.05186771]
[1749799718120,6.8974,144.91,144.89,0.05186771]
[1749799718626,6.8976,144.9,144.89,0.05186771]
[1749799719123,0.04830508,144.92,144.89,0.05186771]
[1749799720618,5.0506338,144.92,144.84,42.38232872]
[1749799720818,10.875218,144.92,144.84,42.38232872]
[1749799721022,5.0506338,144.92,144.84,42.38232872]
[1749799721222,6.8987,144.88,144.85,6.8998]
[1749799721621,6.8987,144.88,144.85,6.9473787]
[1749799721928,0.04878953,144.88,144.85,0.0475787]
[1749799722228,6.8994,144.87,144.85,0.0475787]
[1749799722526,0.04878953,144.88,144.85,0.0475787]
[1749799723523,6.8996,144.86,144.85,0.0475787]
[1749799724329,0.04878953,144.88,144.85,0.0475787]
[1749799725728,5.00232872,144.87,144.81,434.92]
[1749799725931,5.00232872,144.85,144.81,434.92]
[1749799726123,4.5165,144.87,144.81,37.38]
[1749799726323,6.9019,144.83,144.81,37.38]
[1749799726525,5.00232872,144.84,144.81,37.38]
[1749799726825,5.05367049,144.84,144.81,37.42803062]
[1749799727127,6.9017,144.83,144.81,37.42803062]
[1749799727522,5.05367049,144.84,144.81,37.42803062]
[1749799727929,5.05367049,144.84,144.81,0.04803062]
[1749799728325,6.9017,144.83,144.81,0.04803062]
[1749799729133,6.9021,144.82,144.81,0.04803062]
[1749799729328,0.05134177,144.84,144.81,0.04803062]
[1749799729827,6.95274177,144.84,144.81,6.95043062]
[1749799730228,6.95274177,144.84,144.82,6.902]
[1749799730534,0.05134177,144.84,144.82,6.902]
[1749799731034,6.95244177,144.84,144.82,6.902]
[1749799731224,0.05134177,144.84,144.82,6.902]
[1749799731736,6.95274177,144.84,144.81,6.95043062]
[1749799732033,6.95274177,144.84,144.81,0.04803062]
[1749799732935,6.95274177,144.84,144.81,6.95043062]
[1749799733434,0.05134177,144.84,144.81,0.04803062]
[1749799733634,0.05134177,144.84,144.82,6.9017]
[1749799734130,6.95254177,144.84,144.82,6.9017]
[1749799734835,6.95254177,144.84,144.81,6.95033062]
[1749799735026,5.00232872,144.83,144.81,0.04803062]
[1749799735233,5.00232872,144.83,144.78,37.38]
[1749799735533,6.9035,144.79,144.78,37.38]
[1749799736735,0.04530566,144.8,144.77,0.0521142]
[1749799737329,6.904,144.78,144.77,0.0521142]
[1749799739237,4.64710566,144.8,144.77,0.0521142]
[1749799739545,6.904,144.78,144.77,0.0521142]
[1749799739733,5.00232872,144.79,144.75,37.38]
[1749799739933,5.00232872,144.79,144.72,37.4]
[1749799740535,2.3808,144.79,144.73,5.00232872]
[1749799740733,0.04475458,144.77,144.75,5.05148534]
[1749799740934,0.04578628,144.77,144.76,44.3049]
[1749799743739,4.7516,144.84,144.8,6.9026]
[1749799744134,6.9021,144.82,144.77,5.00232872]
[1749799744337,6.44527901,144.89,144.81,5.00232872]
[1749799744537,5.80822974,144.88,144.83,5.00232872]
[1749799744839,0.05129847,144.87,144.84,0.04752627]
[1749799745437,0.05129847,144.87,144.85,6.9004]
[1749799745836,0.05129847,144.87,144.84,0.04752627]
[1749799746038,0.05129847,144.87,144.84,6.94832627]
[1749799746840,6.95099847,144.87,144.84,6.94832627]
[1749799747339,0.05129847,144.87,144.84,0.04752627]
[1749799747843,6.95119847,144.87,144.84,6.94862627]
[1749799748544,6.9002,144.86,144.84,0.04752627]
[1749799750538,6.95119847,144.87,144.84,0.04752627]
[1749799750746,0.05129847,144.87,144.84,0.04752627]
[1749799751945,0.05129847,144.87,144.85,6.9006]
[1749799752336,0.05129847,144.87,144.84,0.04752627]
[1749799752649,0.05129847,144.87,144.85,6.9004]
[1749799757147,6.95129847,144.87,144.84,0.04752627]
[1749799757346,0.05129847,144.87,144.84,0.04752627]
[1749799758346,0.05129847,144.87,144.85,6.9003]
[1749799758851,0.05129847,144.87,144.86,6.9002]
[1749799760450,6.4200305,144.95,144.86,37.52]
[1749799760646,5.84719778,144.94,144.89,5.00232872]
[1749799760846,5.00232872,144.95,144.9,37.52]
[1749799761048,5.00232872,144.93,144.89,37.52]
[1749799761248,5.84673086,144.92,144.87,37.52]
[1749799761449,6.8988,144.9,144.88,0.04898732]
[1749799761648,0.0444944,144.91,144.88,0.04898732]
[1749799762151,0.0444944,144.91,144.88,6.94808732]
[1749799762152,6.9425944,144.91,144.88,6.94808732]
[1749799762649,0.0444944,144.91,144.89,6.8987]
[1749799763550,6.9422944,144.91,144.88,6.94808732]
[1749799765449,0.0444944,144.91,144.89,6.8987]
[1749799765849,0.0444944,144.91,144.88,6.94818732]
[1749799766555,6.9425944,144.91,144.88,6.94818732]
[1749799767250,6.9425944,144.91,144.88,0.04898732]
[1749799767752,6.9425944,144.91,144.88,6.94788732]
[1749799769047,6.9425944,144.91,144.88,0.04898732]
[1749799769555,6.8984,144.9,144.88,0.04898732]
[1749799769755,0.0444944,144.91,144.88,0.04898732]
[1749799770057,6.8988,144.89,144.88,0.04898732]
[1749799770350,0.0444944,144.91,144.88,0.04898732]
[1749799770549,6.8986,144.9,144.88,0.04898732]
[1749799770946,0.0444944,144.91,144.88,0.04898732]
[1749799771253,6.8988,144.89,144.88,0.04898732]
[1749799771648,6.8985,144.9,144.88,0.04898732]
[1749799772761,6.8985,144.9,144.88,6.94818732]
[1749799772953,6.9425944,144.91,144.88,0.04898732]
[1749799773454,6.9425944,144.91,144.88,6.94798732]
[1749799773847,0.0444944,144.91,144.88,0.04898732]
[1749799774457,0.0444944,144.91,144.89,6.8988]
[1749799774859,0.0444944,144.91,144.88,0.04898732]
[1749799775250,0.0444944,144.91,144.88,5.05131604]
[1749799775750,0.0444944,144.91,144.9,6.8983]
[1749799775949,0.0444944,144.91,144.9,44.7783]
[1749799776553,0.0444944,144.91,144.9,49.78062872]
[1749799779054,6.4200305,145.05,144.9,221.78465744]
[1749799779361,10.40439647,145.04,144.99,5.00232872]
[1749799779560,5.82989647,145.03,144.99,5.00232872]
[1749799779758,5.82989647,145.03,144.97,37.88]
[1749799779759,6.8929,145.02,144.97,42.88232872]
[1749799780058,0.04562427,145.01,144.99,5.00232872]
[1749799780263,0.04562427,145.01,145.0,6.8935]
[1749799788164,4.4443,145.07,145.0,4.98831223]
[1749799788356,4.4443,145.07,145.01,37.86]
[1749799788672,4.4443,145.07,145.05,11.87921223]
[1749799788967,2.1797,145.07,145.05,11.87921223]
[1749799789166,2.1797,145.07,145.01,37.86]
[1749799789167,2.73902298,145.09,145.01,37.86]
[1749799789358,0.04974882,145.07,145.05,0.05176097]
[1749799790264,0.04974882,145.07,145.05,6.94276097]
[1749799791059,0.04974882,145.07,145.05,0.05176097]
[1749799791254,6.94004882,145.07,145.05,0.05176097]
[1749799791463,0.04974882,145.07,145.05,0.05176097]
[1749799791663,0.04974882,145.07,145.02,6.8922]
[1749799791864,0.04974882,145.07,145.01,37.86]
[1749799791865,5.90470637,145.07,145.01,37.86]
[1749799792167,6.8918,145.04,145.01,44.7528]
[1749799792561,2.73902298,145.09,145.02,4.98831223]
[1749799792862,6.891,145.06,145.04,0.0482358]
[1749799793067,0.04700959,145.07,145.04,0.0482358]
[1749799793268,6.8912,145.06,145.04,0.0482358]
[1749799793576,0.04700959,145.07,145.04,0.0482358]
[1749799793870,6.8911,145.06,145.04,0.0482358]
[1749799794571,6.8912,145.05,145.04,0.0482358]
[1749799795171,6.8909,145.06,145.04,0.0482358]
[1749799795365,0.04700959,145.07,145.04,0.0482358]
[1749799795565,5.03532182,145.07,145.04,0.0482358]
[1749799795766,6.8912,145.05,145.04,0.0482358]
[1749799796068,2.3513,145.06,145.01,37.86]
[1749799796267,6.8924,145.03,145.01,37.86]
[1749799796861,2.3513,145.06,145.01,37.86]
[1749799796862,6.8926,145.02,145.01,37.86]
[1749799797065,6.8926,145.02,145.01,37.90596796]
[1749799797865,6.94133314,145.03,145.01,37.90596796]
[1749799798972,6.8926,145.02,145.01,37.90596796]
[1749799799368,0.04903314,145.03,145.01,37.90596796]
[1749799800780,6.8926,145.02,145.01,0.04596796]
[1749799801477,6.94133314,145.03,145.01,0.04596796]
[1749799801876,6.8926,145.02,145.01,0.04596796]
[1749799802268,0.04903314,145.03,144.98,37.84]
[1749799802473,6.894,144.99,144.95,89.78124884]
[1749799802669,4.98831223,145.03,144.96,37.84]
[1749799803075,2.3949,145.04,144.97,4.98831223]
[1749799803480,0.0493684,145.02,144.99,5.03781038]
[1749799803878,0.0493684,145.02,145.0,4.98831223]
[1749799804081,0.0493684,145.02,145.0,42.82831223]
[1749799804378,0.0493684,145.02,145.0,44.7333]
[1749799804973,0.0493684,145.02,145.0,37.84]
[1749799805275,0.0493684,145.02,145.0,42.82831223]
[1749799805478,2.73902298,145.09,145.0,37.84]
[1749799805674,2.73902298,145.09,145.05,4.98731999]
[1749799806376,0.05132626,145.08,145.06,0.04738181]
[1749799808878,0.05132626,145.08,145.01,44.58754928]
[1749799809080,5.03887554,145.08,145.01,44.58754928]
[1749799809383,6.8915,145.05,145.01,51.48044928]
[1749799809978,0.0479937,145.04,145.02,6.9401751]
[1749799810980,0.0479937,145.04,145.03,6.8921]
[1749799814575,2.73902298,145.09,145.06,6.8905]
[1749799814972,9.62852298,145.09,145.06,6.8905]
[1749799815385,6.8898,145.08,145.05,46.4909]
[1749799815586,0.04490238,145.08,145.06,0.0491183]
[1749799816584,5.89986262,145.08,145.06,0.0491183]
[1749799817281,12.78986262,145.08,145.06,0.0491183]
[1749799817481,5.86402808,145.07,145.06,0.0491183]
[1749799817884,0.04490238,145.08,145.06,0.0491183]
[1749799818189,6.4200305,145.16,145.07,4.98754928]
[1749799818481,6.4200305,145.16,145.11,4.98754928]
[1749799818482,6.887,145.14,145.11,4.98754928]
[1749799818687,5.86192393,145.13,145.11,4.98754928]
[1749799818887,5.86192393,145.12,145.11,4.98754928]
[1749799819085,0.05289516,145.13,145.11,4.98754928]
[1749799819291,6.94029516,145.13,145.1,39.62526871]
[1749799819683,6.8883,145.11,145.1,39.62526871]
[1749799819877,5.87306635,145.11,145.06,44.56435561]
[1749799820079,5.87306635,145.1,145.06,44.56435561]
[1749799820279,4.98435561,145.13,145.06,39.58]
[1749799820585,19.96762258,145.12,145.06,39.58]
[1749799820889,5.0301393,145.1,145.03,436.5]
[1749799821084,5.87297232,145.09,145.03,436.5]
[1749799821285,5.87297232,145.08,145.03,436.5]
[1749799821485,19.53228675,145.11,145.03,436.5]
[1749799821683,5.88248095,145.1,145.04,6.8914]
[1749799821892,6.93786484,145.08,145.06,0.05085208]
[1749799822093,5.88248095,145.07,145.06,0.05085208]